[Event "FIDE Grand Swiss 2023"]
[Site "Villa Marina, Douglas, Isle of Man"]
[Date "2023.11.01"]
[Round "7.51"]
[White "Idani, Pouya"]
[Black "Samunenkov, Ihor"]
[Result "1/2-1/2"]
[WhiteElo "2633"]
[BlackElo "2531"]
[EventDate "2023.10.25"]
[ECO "C42"]
[PlyCount "125"]
[BlackFideId "14187086"]
[TimeControl "40/100 + 20/50 + 15 + 30s/move"]
[WhiteFideId "12510130"]

1.e4 {[%clk 01:40:59]} 1...e5 {[%clk 01:40:46][%emt 00:00:15]} 2.Nf3 {[%clk
01:41:16][%emt 00:00:12]} 2...Nf6 {[%clk 01:41:10][%emt 00:00:07]} 3.Nxe5 
{[%clk 01:38:15][%emt 00:03:30]} 3...d6 {[%clk 01:41:33][%emt 00:00:07]} 4.Nf3 
{[%clk 01:38:39][%emt 00:00:06]} 4...Nxe4 {[%clk 01:41:55][%emt 00:00:08]} 
5.Bd3 {[%clk 01:38:57][%emt 00:00:12]} 5...Nf6 {[%clk 01:33:42][%emt 00:08:43]} 
6.O-O {[%clk 01:39:12][%emt 00:00:16]} 6...Bg4 {[%clk 01:32:56][%emt 00:01:16]} 
7.Re1+ {[%clk 01:38:36][%emt 00:01:05]} 7...Be7 {[%clk 01:33:00][%emt 00:00:26]} 
8.h3 {[%clk 01:38:58][%emt 00:00:08]} 8...Bh5 {[%clk 01:29:01][%emt 00:04:28]} 
9.Bf1 {[%clk 01:35:40][%emt 00:03:49]} 9...O-O {[%clk 01:18:12][%emt 00:11:19]} 
10.d4 {[%clk 01:34:32][%emt 00:01:38]} 10...c6 {[%clk 01:12:11][%emt 00:06:31]} 
11.c4 {[%clk 01:32:00][%emt 00:03:03]} 11...d5 {[%clk 01:10:57][%emt 00:01:44]} 
12.g4 {[%clk 01:28:35][%emt 00:03:54]} 12...Bg6 {[%clk 01:10:55][%emt 00:00:32]} 
13.Ne5 {[%clk 01:20:50][%emt 00:08:15]} 13...dxc4 {[%clk 00:47:16][%emt
00:24:10]} 14.Bxc4 {[%clk 01:19:29][%emt 00:01:51]} 14...Nbd7 {[%clk
00:46:40][%emt 00:01:06]} 15.Nc3 {[%clk 01:13:08][%emt 00:06:51]} 15...Bb4 
{[%clk 00:41:45][%emt 00:05:24]} 16.f4 {[%clk 00:57:21][%emt 00:16:17]} 16...c5 
{[%clk 00:30:22][%emt 00:11:53]} 17.d5 {[%clk 00:46:30][%emt 00:11:22]} 
17...Nxe5 {[%clk 00:26:17][%emt 00:04:34]} 18.fxe5 {[%clk 00:44:56][%emt
00:02:04]} 18...Nd7 {[%clk 00:17:34][%emt 00:09:13]} 19.Bf1 {[%clk
00:44:36][%emt 00:00:51]} 19...c4 {[%clk 00:11:21][%emt 00:06:42]} 20.Bf4 
{[%clk 00:43:26][%emt 00:01:40]} 20...b5 {[%clk 00:09:55][%emt 00:01:57]} 
21.Qf3 {[%clk 00:37:34][%emt 00:06:21]} 21...Nc5 {[%clk 00:09:22][%emt
00:01:04]} 22.d6 {[%clk 00:37:11][%emt 00:00:53]} 22...Nd3 {[%clk 00:05:08][%emt
00:04:44]} 23.Bxd3 {[%clk 00:37:17][%emt 00:00:22]} 23...cxd3 {[%clk
00:05:01][%emt 00:00:37]} 24.Qg3 {[%clk 00:35:14][%emt 00:02:32]} 24...Rc8 
{[%clk 00:04:14][%emt 00:01:18]} 25.h4 {[%clk 00:34:51][%emt 00:00:53]} 
25...Qb6+ {[%clk 00:02:19][%emt 00:02:26]} 26.Be3 {[%clk 00:32:22][%emt
00:02:59]} 26...Qb7 {[%clk 00:02:40][%emt 00:00:09]} 27.h5 {[%clk 00:31:59][%emt
00:00:52]} 27...Be4 {[%clk 00:02:19][%emt 00:00:51]} 28.Rf1 {[%clk
00:28:58][%emt 00:03:32]} 28...Bxc3 {[%clk 00:01:35][%emt 00:01:13]} 29.bxc3 
{[%clk 00:29:23][%emt 00:00:05]} 29...Qd5 {[%clk 00:00:48][%emt 00:01:17]} 
30.Rac1 {[%clk 00:22:08][%emt 00:07:46]} 30...Rfe8 {[%clk 00:00:40][%emt
00:00:38]} 31.Bd4 {[%clk 00:21:59][%emt 00:00:39]} 31...b4 {[%clk 00:00:46][%emt
00:00:24]} 32.Qe3 {[%clk 00:22:02][%emt 00:00:26]} 32...Rc4 {[%clk
00:00:37][%emt 00:00:39]} 33.Rf2 {[%clk 00:12:09][%emt 00:10:24]} 33...bxc3 
{[%clk 00:00:40][%emt 00:00:27]} 34.Bxc3 {[%clk 00:12:35][%emt 00:00:04]} 
34...Rec8 {[%clk 00:01:00][%emt 00:00:10]} 35.Rcf1 {[%clk 00:10:25][%emt
00:02:39]} 35...Rxc3 {[%clk 00:00:43][%emt 00:00:47]} 36.Rxf7 {[%clk
00:10:12][%emt 00:00:43]} 36...h6 {[%clk 00:00:33][%emt 00:00:41]} 37.d7 {[%clk
00:07:03][%emt 00:03:39]} 37...Rd8 {[%clk 00:00:46][%emt 00:00:17]} 38.Qf4 
{[%clk 00:04:33][%emt 00:03:00]} 38...Qd4+ {[%clk 00:00:38][%emt 00:00:39]} 
39.Kh2 {[%clk 00:04:34][%emt 00:00:27]} 39...Rxd7 {[%clk 00:00:33][%emt
00:00:35]} 40.e6 {[%clk 00:01:51][%emt 00:03:14]} 40...Rc2+ {[%clk
00:00:33][%emt 00:00:30]} 41.Kg3 {[%clk 00:01:48][%emt 00:00:32]} 41...Rd8 
{[%clk 00:32:14][%emt 00:18:50]} 42.e7 {[%clk 00:50:56][%emt 00:01:21]} 
42...Rcc8 {[%clk 00:32:17][%emt 00:00:27]} 43.exd8=Q+ {[%emt 00:02:57]} 
43...Rxd8 {[%clk 00:32:36][%emt 00:00:10]} 44.Rf8+ {[%clk 00:27:43][%emt
00:21:17]} 44...Rxf8 {[%clk 00:32:57][%emt 00:00:09]} 45.Qxf8+ {[%clk
00:28:10][%emt 00:00:04]} 45...Kh7 {[%clk 00:33:18][%emt 00:00:09]} 46.Qf4 
{[%clk 00:28:29][%emt 00:00:11]} 46...Kg8 {[%clk 00:17:15][%emt 00:16:32]} 
47.Re1 {[%clk 00:17:29][%emt 00:11:30]} 47...d2 {[%clk 00:15:56][%emt 00:01:49]} 
48.Rd1 {[%clk 00:16:43][%emt 00:01:17]} 48...Qd3+ {[%clk 00:14:49][%emt
00:01:37]} 49.Kf2 {[%clk 00:16:07][%emt 00:01:06]} 49...Qd4+ {[%clk 00:15:03]
[%emt 00:00:15]} 50.Qe3 {[%clk 00:16:03] [%emt 00:00:34]} 50...Qf6+ {[%clk
00:14:33] [%emt 00:00:59]} 51.Kg3 {[%clk 00:13:09][%emt 00:03:25]} 51...Qe5+ 
{[%clk 00:13:15][%emt 00:01:47]} 52.Qf4 {[%clk 00:13:34][%emt 00:00:06]} 
52...Qc3+ {[%clk 00:12:51][%emt 00:00:54]} 53.Kf2 {[%clk 00:13:35][%emt
00:00:29]} 53...Qd4+ {[%clk 00:15:03][%emt 00:00:15]} 54.Qe3 {[%clk
00:16:03][%emt 00:00:34]} 54...Qf6+ {[%clk 00:14:33][%emt 00:00:59]} 55.Kg1 
{[%clk 00:09:42][%emt 00:04:46]} 55...Bf3 {[%clk 00:07:31][%emt 00:05:31]} 
56.g5 {[%clk 00:07:05][%emt 00:03:07]} 56...hxg5 {[%clk 00:02:08][%emt
00:05:53]} 57.Rxd2 {[%clk 00:06:38][%emt 00:00:58]} 57...g4 {[%clk
00:00:58][%emt 00:01:40]} 58.Qxa7 {[%clk 00:02:57][%emt 00:04:10]} 58...Qh4 
{[%clk 00:01:10][%emt 00:00:18]} 59.Qb8+ {[%clk 00:03:11][%emt 00:00:17]} 
59...Kh7 {[%clk 00:01:23] [%emt 00:00:16]} 60.Qb1+ {[%clk 00:02:48] [%emt
00:00:53]} 60...Kh8 {[%clk 00:00:49] [%emt 00:01:04]} 61.Qb8+ {[%clk 00:03:14]
[%emt 00:00:05]} 61...Kh7 {[%clk 00:01:23][%emt 00:00:16]} 62.Qb1+ {[%clk
00:02:48][%emt 00:00:53]} 62...Kh8 {[%clk 00:00:49][%emt 00:01:04]} 63.Qb8+ 
{[%clk 00:03:14][%emt 00:00:05]} 1/2-1/2

[Event "FIDE Grand Swiss 2023"]
[Site "Villa Marina, Douglas, Isle of Man"]
[Date "2023.11.01"]
[Round "7.52"]
[White "Lazavik, Denis"]
[Black "Henriquez Villagra, Cristobal"]
[Result "1/2-1/2"]
[WhiteElo "2560"]
[BlackElo "2630"]
[EventDate "2023.10.25"]
[ECO "D11"]
[PlyCount "84"]
[BlackClock "00:44:54"]
[BlackFideId "3409350"]
[TimeControl "40/100 + 20/50 + 15 + 30s/move"]
[WhiteClock "00:52:36"]
[WhiteFideId "13515110"]

1.d4 {[%clk 01:40:51][%emt 00:00:07]} 1...d5 {[%clk 01:40:55][%emt 00:00:06]} 
2.c4 {[%clk 01:40:56][%emt 00:00:25]} 2...c6 {[%clk 01:41:19][%emt 00:00:06]} 
3.Nf3 {[%clk 01:40:58][%emt 00:00:27]} 3...Nf6 {[%clk 01:41:44][%emt 00:00:06]} 
4.e3 {[%clk 01:40:37][%emt 00:00:51]} 4...e6 {[%clk 01:42:00][%emt 00:00:15]} 
5.b3 {[%clk 01:40:18][%emt 00:00:48]} 5...Ne4 {[%clk 01:41:51][%emt 00:00:40]} 
6.Qc2 {[%clk 01:38:31][%emt 00:02:15]} 6...Bb4+ {[%clk 01:32:00][%emt 00:10:21]} 
7.Nbd2 {[%clk 01:38:35][%emt 00:00:26]} 7...f5 {[%clk 01:32:08][%emt 00:00:22]} 
8.Be2 {[%clk 01:35:16][%emt 00:03:49]} 8...O-O {[%clk 01:28:53][%emt 00:03:46]} 
9.O-O {[%clk 01:34:14][%emt 00:01:31]} 9...Nd7 {[%clk 01:25:35][%emt 00:03:49]} 
10.Ne1 {[%clk 01:28:53][%emt 00:05:51]} 10...Bd6 {[%clk 01:18:09][%emt
00:07:55]} 11.Nd3 {[%clk 01:26:29][%emt 00:02:54]} 11...Rf6 {[%clk
01:14:57][%emt 00:03:43]} 12.Nf3 {[%clk 01:24:41][%emt 00:02:17]} 12...Rh6 
{[%clk 01:12:57][%emt 00:02:30]} 13.g3 {[%clk 01:24:08][%emt 00:01:02]} 
13...Qf6 {[%clk 01:08:29][%emt 00:05:00]} 14.Bb2 {[%clk 01:23:08][%emt
00:01:30]} 14...g5 {[%clk 01:04:54][%emt 00:04:05]} 15.Nfe5 {[%clk
01:14:18][%emt 00:09:19]} 15...Rh3 {[%clk 00:45:58][%emt 00:19:27]} 16.Kg2 
{[%clk 01:10:34][%emt 00:04:13]} 16...Qh6 {[%clk 00:38:41][%emt 00:07:48]} 
17.Rh1 {[%clk 01:10:45][%emt 00:00:18]} 17...Bxe5 {[%clk 00:36:32][%emt
00:02:39]} 18.dxe5 {[%clk 01:10:09][%emt 00:01:07]} 18...dxc4 {[%clk
00:36:59][%emt 00:00:04]} 19.bxc4 {[%clk 01:03:31][%emt 00:07:08]} 19...g4 
{[%clk 00:36:58][%emt 00:00:31]} 20.f3 {[%clk 01:00:39][%emt 00:03:21]} 
20...Ng5 {[%clk 00:37:09][%emt 00:00:19]} 21.Nf2 {[%clk 00:52:28][%emt
00:08:41]} 21...Nxf3 {[%clk 00:31:56][%emt 00:05:44]} 22.Bxf3 {[%clk
00:43:54][%emt 00:09:04]} 22...gxf3+ {[%clk 00:32:20][%emt 00:00:06]} 23.Kxf3 
{[%clk 00:44:22][%emt 00:00:02]} 23...b6 {[%clk 00:32:33][%emt 00:00:17]} 
24.Nxh3 {[%clk 00:41:05][%emt 00:03:47]} 24...Qxh3 {[%clk 00:32:57][%emt
00:00:06]} 25.Qg2 {[%clk 00:41:20][%emt 00:00:14]} 25...Qg4+ {[%clk
00:32:41][%emt 00:00:46]} 26.Kf2 {[%clk 00:41:46][%emt 00:00:05]} 26...Nc5 
{[%clk 00:33:08][%emt 00:00:04]} 27.Rhd1 {[%clk 00:41:48][%emt 00:00:27]} 
27...Ba6 {[%clk 00:31:32][%emt 00:02:06]} 28.Kg1 {[%clk 00:39:12][%emt
00:03:05]} 28...Ne4 {[%clk 00:28:10][%emt 00:03:53]} 29.Rac1 {[%clk
00:31:47][%emt 00:07:55]} 29...Bxc4 {[%clk 00:26:07][%emt 00:02:33]} 30.h3 
{[%clk 00:32:05][%emt 00:00:11]} 30...Qe2 {[%clk 00:26:29][%emt 00:00:09]} 
31.Qxe2 {[%clk 00:32:09][%emt 00:00:26]} 31...Bxe2 {[%clk 00:26:54][%emt
00:00:05]} 32.Rd7 {[%clk 00:31:44][%emt 00:00:55]} 32...c5 {[%clk 00:27:12][%emt
00:00:13]} 33.a4 {[%clk 00:28:14][%emt 00:03:59]} 33...h5 {[%clk 00:21:19][%emt
00:06:23]} 34.Kg2 {[%clk 00:22:32][%emt 00:06:11]} 34...Kf8 {[%clk
00:13:41][%emt 00:08:09]} 35.Rc2 {[%clk 00:20:30][%emt 00:02:32]} 35...Ba6 
{[%clk 00:14:05][%emt 00:00:06]} 36.Rh7 {[%clk 00:19:00][%emt 00:02:00]} 
36...Rd8 {[%clk 00:12:54][%emt 00:01:41]} 37.Rxa7 {[%clk 00:16:11][%emt
00:03:19]} 37...Bd3 {[%clk 00:12:31][%emt 00:00:53]} 38.Rc1 {[%clk
00:16:29][%emt 00:00:11]} 38...Be2 {[%clk 00:12:15][%emt 00:00:47]} 39.Bc3 
{[%clk 00:12:12][%emt 00:04:47]} 39...Rd3 {[%clk 00:12:39][%emt 00:00:06]} 
40.Rb1 {[%clk 00:06:26][%emt 00:06:16]} 40...Nxc3 {[%clk 00:04:46][%emt
00:08:22]} 41.Rxb6 {[%clk 00:06:46][%emt 00:00:10]} 41...Rd8 {[%clk
00:04:01][%emt 00:01:15]} 42.Rbb7 {[%clk 00:04:36][%emt 00:02:41]} 42...Bc4 
{[%clk 00:44:54][%emt 00:09:36]} 1/2-1/2

[Event "FIDE Grand Swiss 2023"]
[Site "Villa Marina, Douglas, Isle of Man"]
[Date "2023.11.01"]
[Round "7.53"]
[White "Mendonca, Leon Luke"]
[Black "Gurel, Ediz"]
[Result "1/2-1/2"]
[WhiteElo "2622"]
[BlackElo "2514"]
[EventDate "2023.10.25"]
[ECO "C42"]
[PlyCount "102"]
[BlackFideId "44507356"]
[TimeControl "40/100 + 20/50 + 15 + 30s/move"]
[WhiteFideId "35028561"]

1.e4 {[%clk 01:40:48][%emt 00:00:11]} 1...e5 {[%clk 01:40:43][%emt 00:00:17]} 
2.Nf3 {[%clk 01:41:02][%emt 00:00:16]} 2...Nf6 {[%clk 01:41:03][%emt 00:00:10]} 
3.Nxe5 {[%clk 01:40:52][%emt 00:00:39]} 3...d6 {[%clk 01:41:29][%emt 00:00:06]} 
4.Nf3 {[%clk 01:41:15][%emt 00:00:06]} 4...Nxe4 {[%clk 01:41:54][%emt 00:00:06]} 
5.d4 {[%clk 01:41:30][%emt 00:00:14]} 5...d5 {[%clk 01:42:18][%emt 00:00:06]} 
6.Bd3 {[%clk 01:41:51][%emt 00:00:10]} 6...Bd6 {[%clk 01:42:34][%emt 00:00:14]} 
7.O-O {[%clk 01:42:04][%emt 00:00:16]} 7...O-O {[%clk 01:42:58][%emt 00:00:07]} 
8.c4 {[%clk 01:42:23][%emt 00:00:10]} 8...c6 {[%clk 01:43:19][%emt 00:00:10]} 
9.Qc2 {[%clk 01:33:52][%emt 00:09:00]} 9...h6 {[%clk 01:42:42][%emt 00:01:07]} 
10.c5 {[%clk 01:34:05][%emt 00:00:17]} 10...Bc7 {[%clk 01:41:01][%emt 00:02:11]} 
11.Nc3 {[%clk 01:34:25][%emt 00:00:10]} 11...f5 {[%clk 01:36:59][%emt 00:04:32]} 
12.a3 {[%clk 01:32:54][%emt 00:02:01]} 12...Be6 {[%clk 01:33:21][%emt 00:04:08]} 
13.Ne2 {[%clk 01:32:24][%emt 00:01:00]} 13...g5 {[%clk 01:23:42][%emt 00:10:10]} 
14.Ne1 {[%clk 01:21:42][%emt 00:11:11]} 14...Nd7 {[%clk 01:18:21][%emt
00:05:51]} 15.f3 {[%clk 01:19:49][%emt 00:02:23]} 15...Qe8 {[%clk 01:15:47][%emt
00:03:05]} 16.g3 {[%clk 01:12:10][%emt 00:08:08]} 16...Qh5 {[%clk 01:11:43][%emt
00:04:34]} 17.Ng2 {[%clk 01:09:51][%emt 00:02:50]} 17...Rae8 {[%clk 01:04:53]} 
18.Be3 {[%clk 01:04:05][%emt 00:06:15]} 18...Ndf6 {[%clk 00:59:14][%emt
00:06:09]} 19.Rae1 {[%clk 00:56:40][%emt 00:07:55]} 19...Kh8 {[%clk
00:54:58][%emt 00:04:47]} 20.Bc1 {[%clk 00:42:57][%emt 00:14:13]} 20...Rf7 
{[%clk 00:47:54][%emt 00:07:34]} 21.Qd1 {[%clk 00:27:26][%emt 00:16:01]} 
21...Bc8 {[%clk 00:35:52][%emt 00:12:32]} 22.Bc2 {[%clk 00:25:43][%emt
00:02:12]} 22...Ref8 {[%clk 00:33:59][%emt 00:02:23]} 23.Qd3 {[%clk
00:17:31][%emt 00:08:43]} 23...Kg8 {[%clk 00:30:46][%emt 00:03:43]} 24.Bd1 
{[%clk 00:17:23][%emt 00:00:37]} 24...Qg6 {[%clk 00:21:49][%emt 00:09:27]} 
25.Qc2 {[%clk 00:16:18][%emt 00:01:36]} 25...f4 {[%clk 00:17:33][%emt 00:04:46]} 
26.gxf4 {[%clk 00:12:49][%emt 00:03:58]} 26...Bh3 {[%clk 00:14:32][%emt
00:03:31]} 27.fxe4 {[%clk 00:03:22][%emt 00:09:57]} 27...Nxe4 {[%clk
00:14:32][%emt 00:00:30]} 28.Ng3 {[%clk 00:03:16][%emt 00:00:37]} 28...gxf4 
{[%clk 00:13:12][%emt 00:01:50]} 29.Nxe4 {[%clk 00:02:54][%emt 00:00:52]} 
29...f3 {[%clk 00:08:57][%emt 00:04:44]} 30.Nf6+ {[%clk 00:01:18][%emt
00:02:07]} 30...Rxf6 {[%clk 00:06:58][%emt 00:02:29]} 31.Qxg6+ {[%clk
00:01:46][%emt 00:00:01]} 31...Rxg6 {[%clk 00:07:23][%emt 00:00:06]} 32.Bxf3 
{[%clk 00:02:09][%emt 00:00:06]} 32...Rxf3 {[%clk 00:07:41][%emt 00:00:12]} 
33.Re8+ {[%clk 00:02:34][%emt 00:00:06]} 33...Kh7 {[%clk 00:02:06][%emt
00:06:04]} 34.Re7+ {[%clk 00:02:53][%emt 00:00:11]} 34...Kg8 {[%clk
00:02:27][%emt 00:00:10]} 35.Rxf3 {[%clk 00:02:56][%emt 00:00:27]} 35...Rxg2+ 
{[%clk 00:02:36][%emt 00:00:21]} 36.Kf1 {[%clk 00:02:45][%emt 00:00:41]} 
36...Rg7+ {[%clk 00:02:25][%emt 00:00:40]} 37.Rxh3 {[%clk 00:03:11][%emt
00:00:04]} 37...Rxe7 {[%clk 00:02:53][%emt 00:00:03]} 38.Bxh6 {[%clk
00:02:49][%emt 00:00:52]} 38...Re4 {[%clk 00:03:04][%emt 00:00:18]} 39.Rb3 
{[%clk 00:00:33][%emt 00:02:46]} 39...b6 {[%clk 00:02:40][%emt 00:00:55]} 
40.cxb6 {[%clk 00:00:34][%emt 00:00:28]} 40...Bxb6 {[%clk 00:02:01][%emt
00:01:09]} 41.Be3 {[%clk 00:46:43][%emt 00:04:20]} 41...Bxd4 {[%clk
00:49:32][%emt 00:03:00]} 42.Bxd4 {[%clk 00:47:08][%emt 00:00:05]} 42...Rxd4 
{[%clk 00:50:00][%emt 00:00:03]} 43.Rc3 {[%clk 00:46:24][%emt 00:01:14]} 
43...Rd1+ {[%clk 00:46:28][%emt 00:04:02]} 44.Ke2 {[%clk 00:45:31][%emt
00:01:23]} 44...Rh1 {[%clk 00:46:50][%emt 00:00:08]} 45.Rxc6 {[%clk
00:44:36][%emt 00:01:25]} 45...Rxh2+ {[%clk 00:47:16][%emt 00:00:04]} 46.Kd3 
{[%clk 00:45:00][%emt 00:00:06]} 46...Rxb2 {[%clk 00:47:42][%emt 00:00:04]} 
47.Ra6 {[%clk 00:45:05][%emt 00:00:25]} 47...Rb7 {[%clk 00:47:38][%emt
00:00:34]} 48.Kd4 {[%clk 00:45:30][%emt 00:00:04]} 48...Rd7 {[%clk
00:48:05][%emt 00:00:04]} 49.Ra5 {[%clk 00:45:57][%emt 00:00:03]} 49...Kf7 
{[%clk 00:48:31][%emt 00:00:03]} 50.Rxd5 {[%clk 00:46:23][%emt 00:00:04]} 
50...Ke6 {[%clk 00:48:59][%emt 00:00:02]} 51.Rxd7 {[%clk 00:46:48][%emt
00:00:04]} 51...Kxd7 {[%clk 00:49:28][%emt 00:00:02]} ( 51...Kxd7 {[%clk
00:49:28] [%emt 00:00:02]} 52.Ke4 {[%emt 00:00:21]} ) 1/2-1/2

[Event "FIDE Grand Swiss 2023"]
[Site "Villa Marina, Douglas, Isle of Man"]
[Date "2023.11.01"]
[Round "7.54"]
[White "Royal, Shreyas"]
[Black "Sanal, Vahap"]
[Result "1-0"]
[WhiteElo "2407"]
[BlackElo "2603"]
[EventDate "2023.10.25"]
[ECO "E18"]
[PlyCount "89"]
[BlackClock "00:45:57"]
[BlackFideId "6300545"]
[TimeControl "40/100 + 20/50 + 15 + 30s/move"]
[WhiteClock "00:46:42"]
[WhiteFideId "448869"]

1.d4 {[%clk 01:40:49][%emt 00:00:10]} 1...Nf6 {[%clk 01:40:48][%emt 00:00:13]} 
2.c4 {[%clk 01:41:12][%emt 00:00:06]} 2...e6 {[%clk 01:41:11][%emt 00:00:06]} 
3.Nf3 {[%clk 01:41:36][%emt 00:00:07]} 3...b6 {[%clk 01:41:32][%emt 00:00:10]} 
4.g3 {[%clk 01:41:59][%emt 00:00:05]} 4...Bb7 {[%clk 01:41:54][%emt 00:00:09]} 
5.Bg2 {[%clk 01:42:22][%emt 00:00:07]} 5...Be7 {[%clk 01:42:15][%emt 00:00:09]} 
6.O-O {[%clk 01:42:45][%emt 00:00:07]} 6...O-O {[%clk 01:42:39][%emt 00:00:06]} 
7.Nc3 {[%clk 01:42:44][%emt 00:00:31]} 7...Ne4 {[%clk 01:41:56][%emt 00:01:13]} 
8.Bd2 {[%clk 01:42:13][%emt 00:01:01]} 8...d6 {[%clk 01:42:10][%emt 00:00:16]} 
9.d5 {[%clk 01:39:23][%emt 00:03:21]} 9...Nxd2 {[%clk 01:41:31][%emt 00:01:08]} 
10.Nxd2 {[%clk 01:39:44][%emt 00:00:09]} 10...e5 {[%clk 01:41:52][%emt
00:00:08]} 11.b4 {[%clk 01:39:41][%emt 00:00:35]} 11...a5 {[%clk 01:40:25][%emt
00:01:57]} 12.bxa5 {[%clk 01:39:06][%emt 00:01:05]} 12...Rxa5 {[%clk
01:40:47][%emt 00:00:07]} 13.a4 {[%clk 01:39:16][%emt 00:00:20]} 13...Nd7 
{[%clk 01:41:09][%emt 00:00:08]} 14.Nb3 {[%clk 01:39:05][%emt 00:00:41]} 
14...Ra6 {[%clk 01:41:31][%emt 00:00:08]} 15.a5 {[%clk 01:34:56][%emt 00:04:40]} 
15...f5 {[%clk 01:41:52][%emt 00:00:09]} 16.Qc2 {[%clk 01:25:54][%emt 00:09:31]} 
16...g6 {[%clk 01:32:03][%emt 00:10:18]} 17.axb6 {[%clk 01:12:27][%emt
00:13:59]} 17...cxb6 {[%clk 01:28:45][%emt 00:03:47]} 18.Nb5 {[%clk
01:03:37][%emt 00:09:21]} 18...Qb8 {[%clk 01:25:05][%emt 00:04:09]} 19.Qd2 
{[%clk 00:45:51][%emt 00:18:17]} 19...Rc8 {[%clk 01:13:58][%emt 00:11:36]} 
20.e4 {[%clk 00:39:38][%emt 00:06:43]} 20...Rxc4 {[%clk 01:08:19][%emt
00:06:08]} 21.exf5 {[%clk 00:37:30][%emt 00:02:39]} 21...gxf5 {[%clk
01:07:51][%emt 00:00:58]} 22.Qe2 {[%clk 00:28:20][%emt 00:09:41]} 22...Rb4 
{[%clk 00:53:32][%emt 00:14:49]} 23.N3d4 {[%clk 00:28:36][%emt 00:00:14]} 
23...Qf8 {[%clk 00:52:08][%emt 00:01:53]} 24.Nc6 {[%clk 00:25:03][%emt
00:04:03]} 24...Rg4 {[%clk 00:48:36][%emt 00:04:01]} 25.Nbd4 {[%clk
00:19:52][%emt 00:05:42]} 25...Rxa1 {[%clk 00:45:29][%emt 00:03:37]} 26.Rxa1 
{[%clk 00:20:18][%emt 00:00:04]} 26...Bf6 {[%clk 00:28:31][%emt 00:17:27]} 
27.Nxf5 {[%clk 00:19:04][%emt 00:01:45]} 27...Rg5 {[%clk 00:28:40][%emt
00:00:20]} 28.Ne3 {[%clk 00:17:20][%emt 00:02:15]} 28...Nc5 {[%clk
00:28:47][%emt 00:00:22]} 29.h4 {[%clk 00:16:37][%emt 00:01:14]} 29...Rg7 
{[%clk 00:27:01][%emt 00:02:15]} 30.Nf5 {[%clk 00:15:46][%emt 00:01:21]} 
30...Rc7 {[%clk 00:26:42][%emt 00:00:49]} 31.Rb1 {[%clk 00:15:58][%emt
00:00:18]} 31...Bc8 {[%clk 00:25:32][%emt 00:01:40]} 32.Qg4+ {[%clk
00:10:44][%emt 00:05:44]} 32...Rg7 {[%clk 00:20:18][%emt 00:05:44]} 33.Qh5 
{[%clk 00:11:09][%emt 00:00:05]} 33...Rb7 {[%clk 00:20:34][%emt 00:00:14]} 
34.Ne3 {[%clk 00:10:09][%emt 00:01:30]} 34...b5 {[%clk 00:14:44][%emt 00:06:20]} 
35.Qe2 {[%clk 00:10:06][%emt 00:00:33]} 35...Na4 {[%clk 00:12:53][%emt
00:02:22]} 36.Nd1 {[%clk 00:10:08][%emt 00:00:28]} 36...Rg7 {[%clk
00:05:11][%emt 00:08:11]} 37.Qxb5 {[%clk 00:09:30][%emt 00:01:09]} 37...Nc5 
{[%clk 00:05:27][%emt 00:00:13]} 38.Ne3 {[%clk 00:06:59][%emt 00:03:01]} 
38...e4 {[%clk 00:04:44][%emt 00:01:14]} 39.Qe2 {[%clk 00:06:20][%emt 00:01:09]} 
39...h6 {[%clk 00:03:54][%emt 00:01:19]} 40.Qh5 {[%clk 00:03:56][%emt 00:02:55]} 
40...Kh7 {[%clk 00:03:07][%emt 00:01:16]} 41.Rb8 {[%clk 00:01:43][%emt
00:02:44]} 41...Bc3 {[%clk 00:48:25][%emt 00:05:11]} 42.Bh3 {[%clk
00:47:36][%emt 00:04:38]} 42...Qf4 {[%clk 00:45:37][%emt 00:03:17]} 43.Bxc8 
{[%clk 00:46:03][%emt 00:02:04]} 43...Rxg3+ {[%clk 00:46:00][%emt 00:00:06]} 
44.fxg3 {[%clk 00:46:19][%emt 00:00:15]} 44...Qxe3+ {[%clk 00:46:08][%emt
00:00:21]} 45.Kg2 {[%clk 00:46:42][%emt 00:00:07]} 1-0